bitfinex/quotes_ETHUSD_20240921
["timestamp","ask_amount","ask_price","bid_price","bid_amount"]
[1726890531914,0.25520724,2549.1,2549.0,1.73145721]
[1726890533112,0.25520724,2549.1,2548.8,4.19965721]
[1726890533377,0.25520724,2549.1,2548.8,1.73145721]
[1726890535419,2.2757,2549.0,2548.6,1.73145721]
[1726890535988,0.25520724,2548.9,2548.6,1.73145721]
[1726890541532,0.25520724,2548.9,2548.8,4.03165721]
[1726890541692,9.6457,2549.4,2548.8,4.03165721]
[1726890541892,9.6457,2549.4,2549.0,1.73145721]
[1726890546272,7.37,2549.4,2549.1,2.321]
[1726890546832,0.25439074,2549.3,2549.1,2.321]
[1726890547032,2.3293,2549.6,2549.1,2.321]
[1726890547232,0.25439074,2549.5,2549.1,2.321]
[1726890556079,0.25439074,2549.5,2549.2,1.73145721]
[1726890556257,0.25439074,2549.5,2549.4,4.21785721]
[1726890556441,9.8254,2549.9,2549.4,1.73145721]
[1726890556771,0.25446096,2549.8,2549.4,1.73145721]
[1726890559332,0.25446096,2549.8,2549.2,4.21785721]
[1726890559527,0.52544706,2549.8,2549.2,4.21785721]
[1726890560019,2.4554,2549.7,2549.2,4.21785721]
[1726890560518,0.25448539,2549.6,2549.2,4.21785721]
[1726890567804,0.25448539,2549.6,2549.4,1.73145721]
[1726890568456,2.4554,2549.7,2549.4,1.73145721]
[1726890568760,0.25452814,2549.6,2549.4,1.73145721]
[1726890568938,2.4554,2549.7,2549.4,1.73145721]
[1726890569142,0.25452814,2549.5,2549.4,1.73145721]
[1726890569319,2.4554,2549.7,2549.4,1.73145721]
[1726890569516,0.25452814,2549.5,2549.4,1.73145721]
[1726890569723,2.4554,2549.7,2549.4,1.73145721]
[1726890569922,0.25452814,2549.5,2549.4,1.73145721]
[1726890570219,2.4554,2549.7,2549.4,1.73145721]
[1726890570645,0.25452814,2549.6,2549.4,1.73145721]
[1726890571060,2.4554,2549.7,2549.4,1.73145721]
[1726890571353,0.25452814,2549.6,2549.4,1.73145721]
[1726890571557,2.4554,2549.7,2549.4,1.73145721]
[1726890571756,0.25452814,2549.5,2549.4,1.73145721]
[1726890572057,2.4554,2549.7,2549.4,1.73145721]
[1726890572415,0.25452814,2549.6,2549.4,1.73145721]
[1726890572857,2.4554,2549.7,2549.4,1.73145721]
[1726890573157,0.25452814,2549.6,2549.4,1.73145721]
[1726890573354,2.4554,2549.7,2549.4,1.73145721]
[1726890573550,0.25452814,2549.5,2549.4,1.73145721]
[1726890573762,2.4554,2549.7,2549.4,1.73145721]
[1726890573967,0.25452814,2549.5,2549.4,1.73145721]
[1726890574120,2.4554,2549.7,2549.4,1.73145721]
[1726890574324,0.25452814,2549.5,2549.4,1.73145721]
[1726890574618,2.4554,2549.7,2549.4,1.73145721]
[1726890575019,0.25452814,2549.6,2549.4,1.73145721]
[1726890575419,2.4554,2549.7,2549.4,1.73145721]
[1726890575759,0.25452814,2549.6,2549.4,1.73145721]
[1726890575973,2.4554,2549.7,2549.4,1.73145721]
[1726890576174,0.25452814,2549.5,2549.4,1.73145721]
[1726890576674,2.4554,2549.7,2549.4,1.73145721]
[1726890577050,0.25452814,2549.6,2549.4,1.73145721]
[1726890577549,2.4554,2549.7,2549.4,1.73145721]
[1726890577948,0.25452814,2549.6,2549.4,1.73145721]
[1726890578148,2.4554,2549.7,2549.4,1.73145721]
[1726890578475,0.25455868,2549.5,2549.4,1.73145721]
[1726890578681,2.4554,2549.7,2549.4,1.73145721]
[1726890579169,0.25455868,2549.6,2549.4,1.73145721]
[1726890579336,2.4554,2549.7,2549.4,1.73145721]
[1726890579537,0.25455868,2549.5,2549.4,1.73145721]
[1726890579741,2.4554,2549.7,2549.4,1.73145721]
[1726890580039,0.25455868,2549.5,2549.4,1.73145721]
[1726890580265,2.4554,2549.7,2549.4,1.73145721]
[1726890580775,0.25400201,2549.6,2549.4,1.73145721]
[1726890580969,2.4554,2549.7,2549.4,1.73145721]
[1726890581162,0.25400201,2549.5,2549.4,1.73145721]
[1726890581363,2.4554,2549.7,2549.4,1.73145721]
[1726890581564,0.25400201,2549.5,2549.4,1.73145721]
[1726890581753,2.4554,2549.7,2549.4,1.73145721]
[1726890582368,0.25400201,2549.6,2549.4,1.73145721]
[1726890582575,2.4554,2549.7,2549.4,1.73145721]
[1726890582874,0.25400201,2549.5,2549.4,1.73145721]
[1726890583081,2.4554,2549.7,2549.4,1.73145721]
[1726890583457,0.25400201,2549.6,2549.4,1.73145721]
[1726890583857,2.4554,2549.7,2549.4,1.73145721]
[1726890584274,0.25400201,2549.6,2549.4,1.73145721]
[1726890584780,2.4554,2549.7,2549.4,1.73145721]
[1726890584987,0.25400201,2549.5,2549.4,1.73145721]
[1726890585190,2.4554,2549.7,2549.4,1.73145721]
[1726890585483,0.25400201,2549.5,2549.4,1.73145721]
[1726890585692,2.4554,2549.7,2549.4,1.73145721]
[1726890585984,0.25400201,2549.5,2549.4,1.73145721]
[1726890586185,2.4554,2549.7,2549.4,1.73145721]
[1726890586383,0.25400201,2549.5,2549.4,1.73145721]
[1726890586604,2.4554,2549.7,2549.2,4.21785721]
[1726890586806,2.70094,2549.7,2549.2,4.21785721]
[1726890586947,0.25400201,2549.6,2549.2,4.21785721]
[1726890588660,0.25400201,2549.6,2549.2,1.73145721]
[1726890602113,2.4499,2549.5,2548.9,5.2529]
[1726890602315,2.4499,2549.5,2549.0,4.73145721]
[1726890602514,0.25399591,2549.4,2549.0,4.73145721]
[1726890603173,2.4499,2549.3,2548.9,1.73145721]
[1726890603374,0.27038959,2549.2,2548.9,1.73145721]
[1726890603603,2.4499,2549.3,2548.9,1.73145721]
[1726890603782,0.25400508,2549.1,2548.9,1.73145721]
[1726890603985,2.4499,2549.3,2548.9,1.73145721]
[1726890604208,0.25400508,2549.0,2548.9,1.73145721]
[1726890604517,2.4499,2549.3,2548.9,1.73145721]
[1726890604680,0.25400508,2549.0,2548.9,1.73145721]
[1726890604878,2.4499,2549.3,2548.9,1.73145721]
[1726890605190,2.69489,2549.3,2548.9,1.73145721]
[1726890605391,0.25400508,2549.2,2548.9,1.73145721]
[1726890605620,2.4499,2549.3,2548.7,4.73145721]
[1726890605789,2.4499,2549.3,2548.6,2.4934]
[1726890605790,0.25400508,2549.1,2548.3,2.4934]
[1726890606115,2.4499,2549.0,2548.6,1.73145721]
[1726890606408,2.94882484,2549.0,2548.6,1.73145721]
[1726890606608,2.70383484,2549.0,2548.6,1.73145721]
[1726890607010,2.70383484,2549.0,2548.8,1.73145721]
[1726890610314,0.25393484,2549.0,2548.8,1.73145721]
[1726890610816,0.25386461,2548.9,2548.8,1.73145721]
[1726890610982,2.4499,2549.2,2548.8,1.73145721]
[1726890611181,0.25386461,2548.9,2548.8,1.73145721]
[1726890611377,2.4499,2549.2,2548.8,1.73145721]
[1726890611576,0.25386461,2549.1,2548.8,1.73145721]
[1726890621080,0.25386461,2549.1,2548.6,2.4934]
[1726890621253,2.3381,2549.0,2548.6,1.73145721]
[1726890621570,2.3381,2549.0,2548.6,2.20460293]
[1726890621743,0.25386461,2548.9,2548.6,2.20460293]
[1726890621951,0.25386461,2548.9,2548.8,1.73145721]
[1726890624473,0.25386461,2548.9,2548.6,1.73145721]
[1726890625450,0.25386461,2548.9,2548.4,2.4175]
[1726890625668,0.25386461,2548.9,2548.6,1.73145721]
[1726890627371,2.3381,2548.8,2548.4,1.73145721]
[1726890627677,2.5919524,2548.8,2548.4,1.73145721]
[1726890628173,2.5919524,2548.8,2548.3,3.0]
[1726890628174,2.5919524,2548.8,2547.7,2.4175]
[1726890628380,2.3381,2548.6,2548.0,1.73145721]
[1726890628765,0.25377908,2548.5,2548.0,1.73145721]
[1726890629288,0.25377908,2548.5,2547.7,2.4175]
[1726890629439,2.3381,2548.4,2547.9,1.73145721]
[1726890629878,0.25365082,2548.3,2547.9,1.73145721]
[1726890630267,0.5128259,2548.3,2547.9,1.73145721]
[1726890631275,2.3381,2548.2,2547.5,2.4175]
[1726890631481,2.3381,2548.2,2547.6,1.73145721]
[1726890631655,0.25357442,2548.1,2547.6,1.73145721]
[1726890632738,2.3381,2548.0,2547.6,1.73145721]
[1726890633040,0.25352858,2547.9,2547.6,1.73145721]
[1726890633352,0.25352858,2547.9,2547.5,1.73145721]
[1726890634142,2.3381,2547.8,2547.5,1.73145721]
[1726890634551,0.25319248,2547.7,2547.5,1.73145721]
[1726890634855,2.3381,2547.8,2547.5,1.73145721]
[1726890635067,0.25319248,2547.6,2547.5,1.73145721]
[1726890635374,2.3381,2547.8,2547.5,1.73145721]
[1726890635967,0.2531558,2547.7,2547.5,1.73145721]
[1726890636136,2.3381,2547.8,2547.5,1.73145721]
[1726890636335,0.2531558,2547.7,2547.5,1.73145721]
[1726890636576,2.3381,2547.8,2547.5,1.73145721]
[1726890636770,0.2531558,2547.7,2547.5,1.73145721]
[1726890636939,2.3381,2547.8,2547.5,1.73145721]
[1726890637341,0.2531558,2547.7,2547.5,1.73145721]
[1726890637785,2.3381,2547.8,2547.5,1.73145721]
[1726890638138,0.2531558,2547.7,2547.5,1.73145721]
[1726890638478,2.3381,2547.8,2547.5,1.73145721]
[1726890638681,0.2531558,2547.6,2547.5,1.73145721]
[1726890638880,2.3381,2547.8,2547.5,1.73145721]
[1726890639085,0.2531558,2547.6,2547.5,1.73145721]
[1726890639239,2.3381,2547.8,2547.5,1.73145721]
[1726890639446,0.2531558,2547.7,2547.5,1.73145721]
[1726890639646,2.3381,2547.8,2547.5,1.73145721]
[1726890639961,0.2531558,2547.7,2547.5,1.73145721]
[1726890640182,2.3381,2547.8,2547.5,1.73145721]
[1726890640550,0.2531558,2547.7,2547.5,1.73145721]
[1726890640778,2.3381,2547.8,2547.5,1.73145721]
[1726890640983,0.2531558,2547.7,2547.5,1.73145721]
[1726890641190,2.3381,2547.8,2547.5,1.73145721]
[1726890641481,0.2531558,2547.7,2547.5,1.73145721]
[1726890641891,2.3381,2547.8,2547.5,1.73145721]
[1726890642044,0.2531558,2547.6,2547.5,1.73145721]
[1726890642577,2.3381,2547.8,2547.5,1.73145721]
[1726890642750,0.2531558,2547.7,2547.5,1.73145721]
[1726890642948,2.3381,2547.8,2547.5,1.73145721]
[1726890643149,0.2531558,2547.7,2547.5,1.73145721]
[1726890643369,2.3381,2547.8,2547.5,1.73145721]
[1726890643697,0.2531558,2547.7,2547.5,1.73145721]
[1726890644180,0.2531558,2547.6,2547.5,1.73145721]
[1726890644386,2.3381,2547.8,2547.5,1.73145721]
[1726890644548,0.2531558,2547.7,2547.5,1.73145721]
[1726890644749,2.3381,2547.8,2547.5,1.73145721]
[1726890645186,0.2531558,2547.7,2547.5,1.73145721]
[1726890645382,2.3381,2547.8,2547.5,1.73145721]
[1726890645682,0.2531558,2547.7,2547.5,1.73145721]
[1726890646195,0.2531558,2547.6,2547.5,1.73145721]
[1726890646361,2.3381,2547.8,2547.5,1.73145721]
[1726890646692,0.2531558,2547.7,2547.5,1.73145721]
[1726890647079,2.3381,2547.8,2547.5,1.73145721]
[1726890647320,0.2531558,2547.6,2547.5,1.73145721]
[1726890647454,2.3381,2547.8,2547.5,1.73145721]
[1726890647660,0.2531558,2547.6,2547.5,1.73145721]
[1726890647858,2.3857,2547.9,2547.5,1.73145721]
[1726890648176,2.62427,2547.9,2547.5,1.73145721]
[1726890648371,0.2531558,2547.8,2547.5,1.73145721]
[1726890653867,0.2531558,2547.8,2547.4,0.0373153]
[1726890654066,2.3857,2547.7,2547.4,0.0373153]
[1726890654515,2.9357,2547.5,2547.4,0.0373153]
[1726890654713,3.42772733,2547.5,2547.4,0.0373153]
[1726890654922,3.68078228,2547.5,2547.4,0.0373153]
[1726890661283,3.13078228,2547.5,2547.4,0.0373153]
[1726890671311,0.25305495,2547.5,2547.4,1.76877251]
[1726890672230,2.3499,2548.0,2547.4,1.76877251]
[1726890672441,0.80279813,2547.9,2547.4,1.76877251]
[1726890672999,0.80279813,2547.9,2547.4,0.0373153]
[1726890673318,0.31526981,2547.8,2547.4,0.0373153]
[1726890673911,0.25279813,2547.7,2547.4,0.0373153]
[1726890674237,0.31526981,2547.8,2547.4,0.0373153]
[1726890674535,0.25279813,2547.6,2547.4,0.0373153]
[1726890674831,0.25279813,2547.5,2547.4,0.0373153]
[1726890675043,2.4576,2547.5,2547.4,0.0373153]
[1726890675337,2.71039813,2547.5,2547.4,0.0373153]
[1726890676945,2.98143794,2547.5,2547.4,0.0373153]
[1726890677105,3.53143794,2547.5,2547.4,0.0373153]
[1726890679723,5.88743794,2547.5,2547.4,0.0373153]
[1726890687146,6.29627221,2547.5,2547.4,0.0373153]
[1726890687520,6.70624287,2547.5,2547.4,0.0373153]
[1726890688048,7.32128331,2547.5,2547.4,0.0373153]
[1726890702655,14.45228331,2547.5,2547.4,0.0373153]
[1726890702861,21.46680139,2547.5,2547.4,0.0373153]
[1726890703110,19.0002283,2547.5,2547.4,0.0373153]
[1726890703813,19.48115008,2547.5,2547.4,0.0373153]
[1726890703984,6.90575721,2546.7,2546.6,0.0373153]
[1726890704187,3.59657572,2546.7,2546.6,0.0373153]
[1726890704383,3.84883851,2546.7,2546.6,0.0373153]
[1726890707098,1.49283851,2546.7,2546.6,0.0373153]
[1726890707498,0.25226279,2546.7,2546.6,2.4076153]
[1726890707806,2.3458,2547.2,2546.6,2.4076153]
[1726890708139,0.25216486,2547.1,2546.6,2.4076153]
[1726890708344,1.65770707,2547.1,2546.6,2.4076153]
[1726890708811,0.55,2547.0,2546.6,2.4076153]
[1726890709222,0.25216486,2546.9,2546.6,2.4076153]
[1726890710942,0.55,2546.8,2546.6,2.4076153]
[1726890711314,0.55,2547.0,2546.6,2.4076153]
[1726890711641,0.55,2546.8,2546.6,2.4076153]
[1726890712329,0.25216486,2546.7,2546.6,2.4076153]
[1726890712640,0.55,2546.8,2546.6,2.4076153]
[1726890712840,0.25225056,2546.7,2546.6,2.4076153]
[1726890713043,0.55,2546.8,2546.6,2.4076153]
[1726890713237,0.25225056,2546.7,2546.6,2.4076153]
[1726890713417,0.55,2546.8,2546.6,2.4076153]
[1726890713601,0.25225056,2546.7,2546.6,2.4076153]
[1726890713801,0.55,2546.8,2546.6,2.4076153]
[1726890714144,0.25225056,2546.7,2546.6,2.4076153]
[1726890714443,0.55,2546.8,2546.6,2.4076153]
[1726890714649,0.25225056,2546.7,2546.6,2.4076153]
[1726890714848,0.55,2546.8,2546.6,2.4076153]
[1726890715009,0.25225056,2546.7,2546.6,0.0373153]
[1726890715210,0.55,2546.8,2546.6,0.0373153]
[1726890715421,0.57154055,2546.7,2546.6,0.0373153]
[1726890716550,1.12154055,2546.7,2546.6,0.0373153]
[1726890722250,1.12154055,2546.7,2546.6,0.03627111]
[1726890722610,0.25225056,2546.7,2546.6,0.03627111]
[1726890722945,0.55,2547.0,2546.6,2.44217111]
[1726890723169,0.25219853,2546.7,2546.6,2.44217111]
[1726890723324,0.96004274,2547.0,2546.6,2.44217111]
[1726890723849,0.55,2546.8,2546.6,2.44217111]
[1726890724442,0.25219853,2546.7,2546.6,2.44217111]
[1726890724613,0.55,2546.9,2546.6,2.44217111]
[1726890724814,0.25219853,2546.7,2546.6,2.44217111]
[1726890725015,0.82741805,2546.9,2546.6,2.44217111]
[1726890725216,0.25219853,2546.7,2546.6,2.44217111]
[1726890725424,0.82741805,2546.9,2546.6,2.44217111]
[1726890725758,0.25219853,2546.7,2546.6,2.44217111]
[1726890726270,0.82741805,2546.9,2546.6,2.44217111]
[1726890726478,0.25219853,2546.7,2546.6,2.44217111]
[1726890726650,0.82741805,2546.9,2546.6,2.44217111]
[1726890726855,0.25219853,2546.7,2546.6,2.44217111]
[1726890727051,0.82741805,2546.9,2546.6,2.44217111]
[1726890727250,0.25217711,2546.7,2546.6,2.44217111]
[1726890727460,0.82741805,2546.9,2546.6,2.44217111]
[1726890727681,0.25217711,2546.7,2546.6,2.44217111]
[1726890727974,0.82741805,2546.9,2546.6,2.44217111]
[1726890728180,0.25217711,2546.7,2546.6,2.44217111]
[1726890728677,0.82741805,2546.9,2546.6,2.44217111]
[1726890728838,0.25217711,2546.7,2546.6,2.44217111]
[1726890729039,0.82741805,2546.9,2546.6,2.44217111]
[1726890729273,0.25217711,2546.7,2546.6,2.44217111]
[1726890729468,0.82741805,2546.9,2546.6,2.44217111]
[1726890729676,0.25217711,2546.7,2546.6,2.44217111]
[1726890729863,0.82741805,2546.9,2546.6,2.44217111]
[1726890730049,0.25217711,2546.7,2546.6,2.44217111]
[1726890730251,0.82741805,2546.9,2546.6,2.44217111]
[1726890730455,0.25217711,2546.7,2546.6,2.44217111]
[1726890730677,0.82741805,2546.9,2546.6,2.44217111]
[1726890730975,0.25217711,2546.7,2546.6,2.44217111]
[1726890731476,0.82741805,2546.9,2546.6,2.44217111]
[1726890731681,0.25217711,2546.7,2546.6,2.44217111]
[1726890731854,0.82741805,2546.9,2546.6,2.44217111]
[1726890732039,0.25217711,2546.7,2546.6,2.44217111]
[1726890732372,0.82741805,2546.9,2546.6,2.44217111]
[1726890732559,0.25216487,2546.7,2546.6,2.44217111]
[1726890732769,0.82741805,2546.9,2546.6,2.44217111]
[1726890733083,2.3683,2546.8,2546.6,0.03627111]
[1726890733238,0.8695718,2546.7,2546.6,0.03627111]
[1726890733669,1.12176727,2546.7,2546.6,0.03627111]
[1726890734338,1.12176727,2546.7,2546.6,2.46897111]
[1726890734339,0.80219547,2546.7,2546.6,2.46897111]
[1726890735357,0.25219547,2546.7,2546.6,2.46897111]
[1726890735763,0.55,2546.8,2546.6,2.46897111]
[1726890735976,0.25212201,2546.7,2546.6,2.46897111]
[1726890736268,0.55,2546.8,2546.6,2.46897111]
[1726890736446,0.25212201,2546.7,2546.6,2.46897111]
[1726890736645,0.55,2546.8,2546.6,2.46897111]
[1726890736847,0.25212201,2546.7,2546.6,2.46897111]
[1726890737040,0.41004274,2547.0,2546.6,2.46897111]
[1726890737243,0.25216181,2546.7,2546.6,2.46897111]
[1726890737554,0.55,2546.9,2546.6,2.46897111]
[1726890737700,0.25216181,2546.7,2546.6,2.46897111]
[1726890737901,0.41004274,2547.0,2546.6,1.76772832]
[1726890738107,0.41004274,2547.0,2546.7,2.3857]
[1726890738398,7.37,2547.3,2546.7,2.3857]
[1726890738601,2.356,2547.4,2546.7,2.3857]
[1726890738820,3.07242977,2547.4,2546.7,2.3857]
[1726890739025,0.55,2547.3,2546.7,2.3857]
[1726890739804,2.356,2547.2,2546.7,2.3857]
[1726890740009,0.55,2547.3,2546.7,2.3857]
[1726890741016,5.44788698,2547.4,2546.7,2.3857]
[1726890741017,0.55,2547.1,2546.7,2.3857]
[1726890741319,0.85118,2547.1,2546.7,2.3857]
[1726890742028,0.2522628,2547.0,2546.7,2.3857]
[1726890748402,0.86735661,2547.0,2546.7,2.3857]
[1726890752644,0.55,2546.9,2546.6,0.03627111]
[1726890752945,0.25229646,2546.8,2546.6,0.03627111]
[1726890759000,2.67529646,2546.8,2546.6,0.03627111]
[1726890759202,3.05933549,2546.8,2546.6,0.03627111]
[1726890761549,0.63633549,2546.8,2546.6,0.03627111]
[1726890767562,0.63633549,2546.8,2546.6,2.38707111]
[1726890768150,0.25229646,2546.8,2546.6,2.38707111]
[1726890768877,0.61509381,2547.0,2546.6,2.38707111]
[1726890769350,0.25212813,2546.9,2546.6,2.38707111]
[1726890782770,0.25212813,2546.9,2546.6,0.03627111]
[1726890787273,0.25212813,2546.9,2546.7,2.4815]
[1726890787464,0.61427221,2546.9,2546.7,2.4815]
[1726890788581,0.61427221,2546.9,2546.6,0.03627111]
[1726890790467,0.55,2546.8,2546.6,0.03627111]
[1726890790676,2.8942,2546.8,2546.6,0.03627111]
[1726890790982,0.25213731,2546.7,2546.6,0.03627111]
[1726890791188,0.35084814,2546.7,2546.6,0.03627111]
[1726890791387,0.60298545,2546.7,2546.6,0.03627111]
[1726890792790,0.35084814,2546.7,2546.6,0.03627111]
[1726890792957,0.60286301,2546.7,2546.6,0.03627111]
[1726890795062,0.25201487,2546.7,2546.6,0.03627111]
[1726890795276,0.25201487,2546.7,2546.6,2.52007111]
[1726890795574,0.25203324,2546.7,2546.6,2.52007111]
[1726890795781,0.55,2547.0,2546.6,2.52007111]
[1726890796094,0.25203324,2546.9,2546.6,2.52007111]
[1726890797477,0.59985845,2546.9,2546.6,2.52007111]
[1726890801199,2.2662,2546.8,2546.6,0.03627111]
[1726890801709,0.25207304,2546.7,2546.6,0.03627111]
[1726890802393,2.2662,2546.8,2546.6,0.03627111]
[1726890802595,0.25207304,2546.7,2546.6,0.03627111]
[1726890802896,2.2662,2546.8,2546.6,0.03627111]
[1726890803098,0.47869304,2546.7,2546.6,0.03627111]
[1726890813815,0.25207304,2546.7,2546.6,0.03627111]
[1726890814182,2.8162,2547.0,2546.6,0.03627111]
[1726890814383,0.55,2546.8,2546.6,0.03627111]
[1726890814584,2.8162,2547.0,2546.6,0.03627111]
[1726890814819,0.55,2546.8,2546.6,0.03627111]
[1726890815188,2.8162,2547.0,2546.6,0.03627111]
[1726890815413,0.55,2546.8,2546.6,0.03627111]
[1726890815998,0.25199344,2546.7,2546.6,0.03627111]
[1726890816308,0.55,2546.8,2546.6,0.03627111]
[1726890816510,0.25199344,2546.7,2546.6,0.03627111]
[1726890816891,0.55,2546.8,2546.6,0.03627111]
[1726890817092,0.25199344,2546.7,2546.6,0.03627111]
[1726890817418,0.55,2546.8,2546.6,0.03627111]
[1726890817617,0.25199344,2546.7,2546.6,0.03627111]
[1726890818005,0.55,2546.8,2546.6,0.03627111]
[1726890818335,0.25199344,2546.7,2546.6,0.03627111]
[1726890819029,0.55,2546.8,2546.6,0.03627111]
[1726890819193,0.25201181,2546.7,2546.6,0.03627111]
[1726890819399,0.55,2546.8,2546.6,0.03627111]
[1726890819695,0.25201181,2546.7,2546.6,0.03627111]
[1726890820028,0.55,2546.8,2546.6,0.03627111]
[1726890820331,0.25201181,2546.7,2546.6,0.03627111]
[1726890820531,0.6165347,2546.7,2546.6,0.03627111]
[1726890820732,0.55,2546.8,2546.6,0.03627111]
[1726890821031,0.25201181,2546.7,2546.6,0.03627111]
[1726890821729,0.55,2546.8,2546.6,0.03627111]
[1726890822038,0.25201181,2546.7,2546.6,0.03627111]
[1726890822408,0.55,2546.8,2546.6,0.03627111]
[1726890822607,0.25201181,2546.7,2546.6,0.03627111]
[1726890823130,0.55,2546.8,2546.6,0.03627111]
[1726890823329,0.25201181,2546.7,2546.6,0.03627111]
[1726890823691,0.55,2546.8,2546.6,0.03627111]
[1726890823893,0.25201181,2546.7,2546.6,0.03627111]
[1726890824430,0.55,2546.8,2546.6,0.03627111]
[1726890824648,0.25201181,2546.7,2546.6,0.03627111]
[1726890824995,0.55,2546.8,2546.6,0.03627111]
[1726890825195,0.25201181,2546.7,2546.6,0.03627111]
[1726890825495,0.55,2546.8,2546.6,0.03627111]
[1726890825927,0.25201181,2546.7,2546.6,0.03627111]
[1726890826227,0.55,2546.8,2546.6,0.03627111]
[1726890826434,0.25201181,2546.7,2546.6,0.03627111]
[1726890826802,0.55,2546.8,2546.6,0.03627111]
[1726890827234,0.25201181,2546.7,2546.6,0.03627111]
[1726890827601,0.55,2546.8,2546.6,0.03627111]
[1726890827804,0.25201181,2546.7,2546.6,0.03627111]
[1726890828005,0.55,2546.8,2546.6,0.03627111]
[1726890828206,0.25201181,2546.7,2546.6,0.03627111]
[1726890828402,0.25201181,2546.7,2546.6,2.48627111]
[1726890828734,0.55,2547.0,2546.6,2.48627111]
[1726890828903,0.25201181,2546.7,2546.6,2.48627111]
[1726890829105,0.55,2547.0,2546.6,2.48627111]
[1726890829324,0.25201181,2546.7,2546.6,2.48627111]
[1726890829536,0.56059324,2546.9,2546.6,2.48627111]
[1726890829737,0.25203017,2546.7,2546.6,2.48627111]
[1726890829902,0.56059324,2546.9,2546.6,2.48627111]
[1726890830533,0.25203017,2546.8,2546.6,0.03627111]
[1726890830736,0.63315251,2546.8,2546.6,0.03627111]
[1726890836365,6.91035721,2546.7,2546.6,0.03627111]
[1726890836578,8.96696346,2546.7,2546.6,0.03627111]
[1726890836723,9.219012,2546.7,2546.6,0.03627111]
[1726890836922,9.62906927,2546.7,2546.6,0.03627111]
[1726890837117,14.36643113,2546.7,2546.6,0.03627111]
[1726890837961,12.30982488,2546.7,2546.6,0.03627111]
[1726890838321,14.36515808,2546.7,2546.6,0.03627111]
[1726890839678,12.30982488,2546.7,2546.6,0.03627111]
[1726890839975,14.36515808,2546.7,2546.6,0.03627111]
[1726890841242,16.23647488,2546.7,2546.6,0.03627111]
[1726890842868,20.36747488,2546.7,2546.6,0.03627111]
[1726890843026,22.83540238,2546.7,2546.6,0.03627111]
[1726890843278,20.36747488,2546.7,2546.6,0.03627111]
[1726890844090,10.57836767,2546.7,2546.6,0.03627111]
[1726890844239,13.81366283,2546.7,2546.6,0.03627111]
[1726890844566,11.75982488,2546.7,2546.6,0.03627111]
[1726890845667,12.30982488,2546.7,2546.6,0.03627111]
[1726890846674,0.66210581,2546.7,2546.6,0.03627111]
[1726890847250,0.66210581,2546.7,2546.6,2.49227111]
[1726890847446,0.25204854,2546.7,2546.6,2.49227111]
[1726890847982,0.23947641,2546.7,2546.6,2.49227111]
[1726890848135,3.99235721,2547.2,2546.6,2.49227111]
[1726890848331,2.63466589,2547.1,2546.6,2.49227111]
[1726890849233,0.55,2547.0,2546.6,2.49227111]
[1726890849578,0.23947641,2546.9,2546.6,2.49227111]
[1726890852162,0.85456703,2546.9,2546.6,2.49227111]
[1726890856389,0.23947641,2546.9,2546.6,2.49227111]
[1726890860387,2.87598905,2547.2,2546.6,2.49227111]
[1726890860388,0.61508905,2547.2,2546.8,2.2931]
[1726890860595,0.78779159,2547.1,2546.8,2.2931]
[1726890862670,0.78779159,2547.1,2546.6,0.03627111]
[1726890862671,0.55,2546.9,2546.6,2.32937111]
[1726890863096,0.23793079,2546.8,2546.6,2.32937111]
[1726890868795,0.23793079,2546.8,2546.6,0.03627111]
[1726890869008,0.54850387,2546.8,2546.6,0.03627111]
[1726890871491,0.55,2546.7,2546.6,0.03627111]
[1726890871826,3.10551731,2546.7,2546.6,0.03627111]
[1726890873888,3.51433425,2546.7,2546.6,0.03627111]
[1726890877235,6.51513425,2546.7,2546.6,0.03627111]
[1726890877527,8.87113425,2546.7,2546.6,0.03627111]
[1726890877733,10.52927133,2546.7,2546.6,0.03627111]
[1726890880502,12.5807288,2546.7,2546.6,0.03627111]
[1726890881710,10.2621288,2546.7,2546.6,0.03627111]
[1726890881912,5.85467133,2546.7,2546.6,0.03627111]
[1726890882118,5.44585439,2546.7,2546.6,0.03627111]
[1726890885239,9.4959116,2546.7,2546.6,0.03627111]
[1726890885441,9.90463408,2546.7,2546.6,0.03627111]
[1726890886042,9.4959116,2546.7,2546.6,0.03627111]
[1726890886346,9.90468745,2546.7,2546.6,0.03627111]
[1726890887640,12.26068745,2546.7,2546.6,0.03627111]
[1726890891022,14.3118585,2546.7,2546.6,0.03627111]
[1726890893529,22.3755085,2546.7,2546.6,0.03627111]
[1726890893848,20.32433745,2546.7,2546.6,0.03627111]
[1726890897774,22.78552071,2546.7,2546.6,0.03627111]
[1726890898252,20.32433745,2546.7,2546.6,0.03627111]
[1726890898964,22.78380075,2546.7,2546.6,0.03627111]
[1726890899176,20.32433745,2546.7,2546.6,0.03627111]
[1726890902632,20.39252159,2546.7,2546.6,0.03627111]
[1726890902836,10.82836655,2546.7,2546.6,0.03627111]
[1726890903073,8.71068745,2546.7,2546.6,0.03627111]
[1726890904216,9.26068745,2546.7,2546.6,0.03627111]
[1726890904415,12.26068745,2546.7,2546.6,0.03627111]
[1726890907723,20.32433745,2546.7,2546.6,0.03627111]
[1726890908221,22.37444613,2546.7,2546.6,0.03627111]
[1726890909071,20.05584613,2546.7,2546.6,0.03627111]
[1726890909277,8.21063024,2546.7,2546.6,0.03627111]
[1726890909472,9.94208745,2546.7,2546.6,0.03627111]
[1726890913033,11.99364207,2546.7,2546.6,0.03627111]
[1726890913778,9.94208745,2546.7,2546.6,0.03627111]
[1726890914408,8.28395037,2546.7,2546.6,0.03627111]
[1726890916283,10.33550499,2546.7,2546.6,0.03627111]
[1726890916716,8.28395037,2546.7,2546.6,0.03627111]
[1726890917093,10.33550499,2546.7,2546.6,0.03627111]
[1726890917316,10.33729592,2546.7,2546.6,0.03627111]
[1726890918132,11.61582551,2546.7,2546.6,0.03627111]
[1726890921307,12.23107949,2546.7,2546.6,0.03627111]
[1726890922300,12.23169121,2546.7,2546.6,0.03627111]
[1726890927241,12.23135304,2546.7,2546.6,0.03627111]
[1726890929346,10.17773394,2546.7,2546.6,0.03627111]
[1726890929542,12.23153453,2546.7,2546.6,0.03627111]
[1726890930465,12.64160587,2546.7,2546.6,0.03627111]
[1726890932111,10.58780528,2546.7,2546.6,0.03627111]
[1726890932423,9.76895809,2546.7,2546.6,0.03627111]
[1726890933248,11.82281024,2546.7,2546.6,0.03627111]
[1726890936209,9.76895809,2546.7,2546.6,0.03627111]
[1726890936412,11.82281024,2546.7,2546.6,0.03627111]
[1726890939261,12.23281646,2546.7,2546.6,0.03627111]
[1726890939936,10.17896431,2546.7,2546.6,0.03627111]
[1726890948130,10.58903775,2546.7,2546.6,0.03627111]
[1726890952199,1.67305095,2546.7,2546.6,2.43737111]
[1726890952383,1.26304473,2546.7,2546.6,2.43737111]